fUSD/lending_fUSD_20250115
["ID","MTS","AMOUNT","RATE_DAILY","PERIOD"]
[349051905,1736953843568,-443.06605,0.0004744,14]
[349051907,1736953843577,-245.0,0.0004744,14]
[349051909,1736953843592,-151.0,0.0004744,14]
[349051911,1736953843601,-172.551504,0.0004744,14]
[349051913,1736953843610,-151.011408,0.00047498,120]
[349051915,1736953843620,-215.85832465,0.000475,120]
[349051917,1736953843629,-2000.0,0.000475,120]
[349051919,1736953843641,-628.52906334,0.0004759,3]
[349051921,1736953843652,-5194.64448078,0.000476,2]
[349051923,1736953843662,-160.0,0.00047608,2]
[349051926,1736953843672,-2222.48,0.00047666,120]
[349051928,1736953843683,-10000.0,0.0004768,30]
[349051930,1736953843692,-2013.0,0.000477,120]
[349051932,1736953843702,-660.0,0.000477,120]
[349051934,1736953843711,-1715.0,0.000477,120]
[349051936,1736953843720,-151.0,0.00047753,120]
[349051938,1736953843730,-151.011408,0.00047798,120]
[349051940,1736953843740,-227.4,0.00047836,120]
[349051942,1736953843751,-15975.42870091,0.0004786,120]
[349051944,1736953843762,-10000.0,0.0004786,30]
[349051946,1736953843773,-10000.0,0.0004786,30]
[349051948,1736953843783,-1000.0,0.00047999,120]
[349051949,1736953843794,-450.0,0.00048,120]
[349051951,1736953843805,-4439.37398908,0.00048,120]
[349051953,1736953843815,-14090.63528724,0.00048,120]
[349051955,1736953843824,-6312.91972743,0.00048,120]
[349051958,1736953843836,-2000.0,0.00048,120]
[349051961,1736953843846,-151.011408,0.00048198,120]
[349051964,1736953843856,-3000.0,0.0004836,41]
[349051966,1736953843865,-27352.0,0.00048455,117]
[349051968,1736953843875,-151.011408,0.00048498,120]
[349051970,1736953843884,-226.0,0.00048521,2]
[349051972,1736953843895,-227.4,0.00048685,120]
[349051974,1736953843905,-5000.0,0.0004869,30]
[349051976,1736953843914,-151.0,0.0004874,120]
[349051978,1736953843923,-151.011408,0.00048798,120]
[349051980,1736953843933,-1000.0,0.000488,60]
[349051982,1736953843943,-2021.8652937,0.000489,120]
[349051984,1736953843953,-1161.15905654,0.000489,120]
[349051986,1736953843963,-300.0,0.00049,120]
[349051988,1736953843972,-21664.79001738,0.00049,2]
[349051990,1736953843982,-19500.0,0.00049,14]
[349051992,1736953843992,-150.0,0.00049,120]
[349051994,1736953844001,-51677.71006616,0.00049,120]
[349051996,1736953844010,-747.59669909,0.00049,30]
[349051998,1736953844020,-21323.59327784,0.00049,120]
[349052000,1736953844030,-5000.0,0.00049,120]
[349052002,1736953844040,-582.37066544,0.00049,120]
[349052004,1736953844050,-25999.999998,0.00049,120]
[349052006,1736953844060,-41759.42329534,0.00049,120]
[349052009,1736953844071,-2875.84,0.000491,120]
[349052011,1736953844085,-151.011408,0.00049198,120]
[349052013,1736953844095,-63836.223266,0.00049236,120]
[349052015,1736953844105,-212.32,0.00049272,2]
[349052017,1736953844115,-1559.49950937,0.000493,60]
[349052040,1736953844421,-940.50049063,0.000493,60]
[349052042,1736953844431,-150.0,0.00049315,30]
[349052043,1736953844441,-150.0,0.00049315,30]
[349052046,1736953844452,-150.0,0.00049315,30]
[349052048,1736953844462,-150.0,0.00049315,30]
[349052050,1736953844472,-150.0,0.00049315,30]
[349052052,1736953844482,-253.0,0.00049315,30]
[349052053,1736953844492,-150.0,0.00049315,30]
[349052055,1736953844502,-300.0,0.00049315,30]
[349052058,1736953844512,-300.0,0.00049315,30]
[349052059,1736953844522,-150.0,0.00049315,30]
[349052061,1736953844531,-150.0,0.00049315,30]
[349052063,1736953844541,-150.0,0.00049315,30]
[349052065,1736953844550,-150.0,0.00049315,30]
[349052067,1736953844560,-150.0,0.00049315,30]
[349052069,1736953844570,-300.0,0.00049315,30]
[349052071,1736953844584,-300.0,0.00049315,30]
[349052073,1736953844594,-150.0,0.00049315,30]
[349052075,1736953844607,-4333.77010694,0.0004944,30]
[349052078,1736953844621,-1516.49999999,0.0004944,30]
[349052219,1736953845609,-153.0,0.00042947,31]
[349052225,1736953845620,-153.0,0.00042947,31]
[349052232,1736953845631,-153.0,0.00042947,31]
[349052237,1736953845643,-153.0,0.00042947,31]
[349052243,1736953845653,-153.0,0.00042947,31]
[349052248,1736953845663,-153.0,0.00042947,31]
[349052254,1736953845674,-4149.72989307,0.0004944,30]
[349052259,1736953845684,-200.0,0.00049456,120]
[349052264,1736953845695,-876.97698135,0.00049462,120]
[349052269,1736953845705,-1659.6949106,0.00049468,120]
[349052274,1736953845715,-1049.80253839,0.0004948,120]
[349052278,1736953845726,-200.0,0.00049481,120]
[349052282,1736953845736,-1960.96384846,0.00049487,120]
[349052287,1736953845746,-2000.0,0.00049494,120]
[349052291,1736953845756,-151.011408,0.00049498,120]
[349052295,1736953845766,-6191.29209064,0.000495,120]
[349052300,1736953845777,-10642.49832949,0.000495,120]
[349052316,1736953845817,-150.0,0.00040672,14]
[349052321,1736953845827,-162880.34787417,0.000495,120]
[349052326,1736953845844,-200.0,0.00049501,120]
[349052332,1736953845854,-200.0,0.00049504,120]
[349052336,1736953845864,-200.0,0.00049506,120]
[349052340,1736953845874,-200.0,0.00049517,120]
[349052344,1736953845883,-628.52906334,0.00049521,3]
[349052348,1736953845893,-227.4,0.00049534,120]
[349052352,1736953845903,-2010.00045147,0.00049541,120]
[349052356,1736953845914,-6508.48642029,0.00049544,120]
[349052359,1736953845923,-200.0,0.00049556,120]
[349052363,1736953845933,-200.0,0.0004956,120]
[349052367,1736953845943,-200.0,0.00049561,120]
[349052371,1736953845953,-200.0,0.00049573,120]
[349052375,1736953845963,-1663.34343927,0.00049586,120]
[349052379,1736953845972,-200.0,0.00049591,120]
[349052383,1736953845982,-200.0,0.000496,120]
[349052387,1736953845993,-200.0,0.00049647,120]
[349052390,1736953846003,-353.46588041,0.00049677,120]
[349052394,1736953846015,-3126.19062015,0.00049684,120]
[349052397,1736953846025,-4798.92073039,0.00049688,120]
[349052401,1736953846035,-200.0,0.00049695,120]
[349052405,1736953846045,-373.7842267,0.00049696,120]
[349052409,1736953846055,-2261.92020729,0.000497,120]
[349052413,1736953846065,-151.0,0.00049726,120]
[349052417,1736953846074,-151.011408,0.00049798,120]
[349052421,1736953846088,-120561.29946398,0.000498,30]
[349052425,1736953846098,-1000.0,0.000498,120]
[349052428,1736953846107,-17455.874552,0.000498,2]
[349052431,1736953846117,-15326.63410101,0.00049849,30]
[349052433,1736953846127,-600.0,0.000499,120]
[349052435,1736953846137,-500.04993634,0.000499,120]
[349052437,1736953846147,-300.0,0.000499,18]
[349052438,1736953846158,-5000.0,0.0004997,30]
[349052439,1736953846169,-1000.0,0.0004999,3]
[349052440,1736953846179,-250.0,0.0005,120]
[349052441,1736953846189,-487.54364615,0.0005,2]
[349052442,1736953846199,-578.0,0.0005,2]
[349052443,1736953846209,-199.43132493,0.0005,120]
[349052444,1736953846219,-1130.34977591,0.0005,2]
[349052447,1736953846231,-679.66558018,0.0005,3]
[349052449,1736953846241,-1000.0,0.0005,120]
[349052450,1736953846250,-725.96856552,0.0005,30]
[349052452,1736953846262,-167.19166967,0.0005,120]
[349052455,1736953846273,-868.75330014,0.0005,120]
[349052456,1736953846283,-2613.4841869,0.0005,5]
[349052459,1736953846293,-1125.0,0.0005,120]
[349052460,1736953846303,-2000.0,0.0005,120]
[349052463,1736953846313,-194631.44327311,0.0005,120]
[349052465,1736953846334,-436055.08415074,0.0005,120]
[349052467,1736953846343,-1544.83371768,0.0005,60]
[349052469,1736953846354,-8100.08213071,0.0005,120]
[349052472,1736953846366,-3001.0,0.0005,120]
[349052474,1736953846386,-3941.90425741,0.0005,120]
[349052476,1736953846396,-23292.01345183,0.0005,120]
[349052478,1736953846409,-9030.0,0.0005,120]
[349052485,1736953846467,-328.04693095,0.0005,120]
[349052488,1736953846482,-5980.99999997,0.0005,120]
[349052503,1736953846634,-1461.89995,0.0005,120]
[349052505,1736953846651,-3687.54669204,0.0005,120]
[349052509,1736953846665,-1186.000002,0.0005,120]
[349052511,1736953846679,-706.77261784,0.0005,120]
[349052513,1736953846694,-296.09,0.0005,120]
[349052516,1736953846708,-1388.95781488,0.0005,120]
[349052518,1736953846720,-199471.12427159,0.0005,120]
[349052521,1736953846737,-19895.8,0.0005,120]
[349052524,1736953846758,-384.42147345,0.0005,120]
[349052526,1736953846770,-3321.62104267,0.0005,120]
[349052528,1736953846782,-2789.58769002,0.0005,120]
[349052637,1736953848213,150.0,0.00040818,117]
[349052760,1736953849570,150.0,0.00041324,60]
[349052805,1736953850010,153.0,0.00042946,31]
[349052827,1736953850226,153.0,0.00042946,31]
[349052850,1736953850445,153.0,0.00042946,31]
[349052866,1736953850603,150.0,0.00042846,31]
[349052876,1736953850688,153.0,0.00042946,31]
[349052891,1736953850908,153.0,0.00042946,31]
[349052912,1736953851121,150.0,0.0004171,61]
[349052920,1736953851188,301.57,0.000412,60]
[349052951,1736953851523,150.0,0.00042846,31]
[349052954,1736953851555,301.57,0.000448,60]
[349052975,1736953851853,301.57,0.000477,60]
[349052982,1736953851926,150.0,0.00042846,31]
[349052988,1736953851991,150.0,0.000419,120]
[349053013,1736953852333,150.0,0.00042846,31]
[349053045,1736953852750,150.0,0.000447,60]
[349053060,1736953852896,150.0,0.00042727,117]
[349053085,1736953853156,150.0,0.000476,60]
[349053100,1736953853308,150.0,0.000428,120]
[349053162,1736953853932,244.42,0.000417,30]
[349053191,1736953854216,150.0,0.00042955,31]
[349053234,1736953854642,150.0,0.00042956,31]
[349053264,1736953855017,150.0,0.00042963,31]
[349053315,1736953855536,150.0,0.00042964,31]
[349053358,1736953855970,150.0,0.00042972,31]
[349053374,1736953856376,150.0,0.00042973,31]
[349053375,1736953856786,150.0,0.0004298,31]
[349053376,1736953857206,150.0,0.00043,120]
[349053377,1736953859170,200.0,0.0004908,120]
[349053378,1736953859196,200.0,0.0004908,120]
[349053379,1736953859223,50.0,0.0004908,120]
[349053380,1736953859251,2425.84,0.0004908,120]
[349053381,1736953859332,150.0,0.000436,120]
[349053382,1736953859416,150.0,0.0004898,120]
[349053383,1736953860855,150.0,0.0004898,120]
[349053384,1736953861253,150.0,0.0004898,120]
[349053385,1736953861444,178.52906334,0.000408,30]
[349053386,1736953861472,96.97093566,0.000408,30]
[349053387,1736953861667,50.0,0.00049178,120]
[349053388,1736953861693,50.0,0.00049178,120]
[349053389,1736953861720,51.011408,0.00049178,120]
[349053390,1736953861936,150.0,0.0004908,120]
[349053391,1736953862085,3581.63501229,0.00049216,120]
[349053392,1736953862112,2010.00045147,0.00049216,120]
[349053393,1736953862137,227.4,0.00049216,120]
[349053394,1736953862162,200.0,0.00049216,120]
[349053395,1736953862188,200.0,0.00049216,120]
[349053396,1736953862212,200.0,0.00049216,120]
[349053397,1736953862238,200.0,0.00049216,120]
[349053398,1736953862262,57217.18780224,0.00049216,120]
[349053399,1736953862321,150.0,0.00049078,120]
[349053400,1736953865065,212.32,0.00049252,30]
[349053401,1736953882399,-301.57,0.000499,60]
[349053402,1736953882424,-3000.0,0.0004993,49]
[349053403,1736953886698,-254.52,0.0005,120]
[349053404,1736953887068,-151.011408,0.0005,120]
[349053405,1736953887434,-4022.0,0.0005,120]
[349053406,1736953887811,-2222.48,0.0005,120]
[349053407,1736953894663,2195.89342206,0.0004928,60]
[349053408,1736953894690,304.10657794,0.0004928,60]
[349053409,1736953896046,-150.0,0.0005,120]
[349053410,1736953896447,-29059.8,0.0005,120]
[349053411,1736953896841,-227.4,0.0005,120]
[349053412,1736953897221,-151.011408,0.0005,120]
[349053413,1736953897581,-150.0,0.0005,120]
[349053414,1736953897974,-151.0,0.0005,120]
[349053415,1736953898353,-151.011408,0.0005,120]
[349053416,1736953898949,-3000.0,0.0005,120]
[349053417,1736953899350,-80893.64678038,0.0005,120]
[349053418,1736953899375,-32999.25927715,0.0005,120]
[349053419,1736953899763,-1000.0,0.0005,120]
[349053420,1736953900139,-2476.129495,0.0005,120]
[349053421,1736953900488,-46.80122785,0.0005,120]
[349053422,1736953900515,-104.21018015,0.0005,120]
[349053423,1736953900875,-227.4,0.0005,120]
[349053424,1736953901249,-628.52906334,0.0005,120]
[349053425,1736953902063,375.55900224,0.00049295,30]
[349053426,1736953902089,2877.44099776,0.00049295,30]
[349053427,1736953903606,-628.52906334,0.0005,120]
[349053428,1736953904033,-151.011408,0.0005,120]
[349053429,1736953904785,10000.0,0.0004942,30]
[349053430,1736953905163,-151.011408,0.0005,120]
[349053431,1736953906034,200.0,0.00049436,120]
[349053432,1736953906836,-151.011408,0.0005,120]
[349053433,1736953907582,876.97698135,0.00049442,120]
[349053434,1736953907968,-151.011408,0.0005,120]
[349053435,1736953908334,1659.6949106,0.00049448,120]
[349053436,1736953908728,9850.0,0.0004942,30]
[349053437,1736953909718,1049.80253839,0.0004946,120]
[349053438,1736953910919,-151.011408,0.0005,120]
[349053439,1736953911830,200.0,0.00049461,120]
[349053440,1736953912217,1960.96384846,0.00049467,120]
[349053441,1736953912595,-151.011408,0.0005,120]
[349053442,1736953913375,2000.0,0.00049474,120]
[349053443,1736953913767,9700.0,0.0004942,30]
[349053444,1736953914506,151.011408,0.00049478,120]
[349053445,1736953914912,9547.0,0.0004942,30]
[349053446,1736953916363,9394.0,0.0004942,30]
[349053447,1736953916880,6191.29209064,0.0004948,120]
[349053448,1736953917309,9241.0,0.0004942,30]
[349053449,1736953917688,8938.0,0.0004942,30]
[349053450,1736953918079,8785.0,0.0004942,30]
[349053451,1736953919157,-2476.129495,0.0005,120]
[349053452,1736953919530,8635.0,0.0004942,30]
[349053453,1736953919877,8333.43,0.0004942,30]
[349053454,1736953920692,6674.15254967,0.0004942,30]
[349053455,1736953920720,1207.70745033,0.0004942,30]
[349053456,1736953921265,173522.84620366,0.0004948,120]
[349053457,1736953921692,1405.77673657,0.0004942,30]
[349053458,1736953921720,6024.51326343,0.0004942,30]
[349053459,1736953922097,-2476.129495,0.0005,120]
[349053460,1736953922661,200.0,0.00047439,60]
[349053461,1736953923368,173372.84620366,0.0004948,120]
[349053462,1736953925562,422.48537181,0.00049816,120]
[349053463,1736953926225,1216.87953147,0.0004942,30]
[349053464,1736953926251,3580.64569436,0.0004942,30]
[349053465,1736953926277,2482.76477417,0.0004942,30]
[349053466,1736953927372,7130.29,0.0004942,30]
[349053467,1736953927773,-3000.0,0.0005,120]
[349053468,1736953928219,6980.29,0.0004942,30]
[349053469,1736953928590,2689.65522583,0.0004942,30]
[349053470,1736953928625,4140.63477417,0.0004942,30]
[349053471,1736953929380,173222.84620366,0.0004948,120]
[349053472,1736953930129,3440.50049063,0.0004928,60]
[349053473,1736953931148,6585.87,0.0004942,30]
[349053474,1736953931711,-151.011408,0.0005,120]
[349053475,1736953932146,200.0,0.00049481,120]
[349053476,1736953932559,6435.87,0.0004942,30]
[349053477,1736953933021,200.0,0.00049484,120]
[349053478,1736953933503,6285.87,0.0004942,30]
[349053479,1736953933890,200.0,0.00049486,120]
[349053480,1736953934323,6135.87,0.0004942,30]
[349053481,1736953934735,200.0,0.00049497,120]
[349053482,1736953935507,5985.87,0.0004942,30]
[349053483,1736953936594,628.52906334,0.00049501,30]
[349053484,1736953937045,478.52906334,0.00049501,30]
[349053485,1736953937487,227.4,0.00049514,120]
[349053486,1736953938028,2010.00045147,0.00049521,120]
[349053487,1736953938500,328.52906334,0.00049501,30]
[349053488,1736953938988,6508.48642029,0.00049524,120]
[349053489,1736953939462,178.52906334,0.00049501,30]
[349053490,1736953942608,200.0,0.0004954,120]
[349053491,1736953942933,2672.38817966,0.000209,60]
[349053492,1736953943502,200.0,0.00049541,120]
[349053493,1736953943858,-150.0,0.0005,120]
[349053494,1736953944046,280.30617888,0.00049,30]
[349053495,1736953944576,-150.0,0.0005,120]
[349053496,1736953945302,-150.0,0.0005,120]
[349053497,1736953946421,63836.223266,0.00049216,120]
[349053498,1736953948686,3932.64642029,0.00049524,120]
[349053499,1736953949045,151.011408,0.00049178,120]
[349053500,1736953949439,2875.84,0.0004908,120]
[349053501,1736953949814,-150.0,0.0005,120]
[349053502,1736953950324,3782.64642029,0.00049524,120]
[349053503,1736953950748,4603.0,0.00049295,30]
[349053504,1736953952121,200.0,0.00049541,120]
[349053505,1736953952489,-150.0,0.0005,120]
[349053506,1736953954250,-150.0,0.0005,120]
[349053507,1736953955254,10135.59989307,0.0004942,30]
[349053508,1736953957882,10038.62895741,0.0004942,30]
[349053509,1736953958343,151.011408,0.00049178,120]
[349053510,1736953959622,3731.63501229,0.00049524,120]
[349053511,1736953960030,2875.84,0.0004908,120]
[349053512,1736953960474,3581.63501229,0.00049524,120]
[349053513,1736953964983,-198.0,9.11e-05,2]
[349053514,1736953965008,-500.0,9.999e-05,2]
[349053515,1736953965549,1663.34343927,0.00049566,120]
[349053516,1736953965977,115855.65840142,0.0004948,120]
[349053517,1736953966414,-150.0,0.0005,120]
[349053518,1736953966836,9826.30895741,0.0004942,30]
[349053519,1736953967214,200.0,0.00049571,120]
[349053520,1736953967627,200.0,0.0004958,120]
[349053521,1736953968263,200.0,0.00049627,120]
[349053522,1736953968898,353.46588041,0.00049657,120]
[349053523,1736953970052,3126.19062015,0.00049664,120]
[349053524,1736953973655,373.7842267,0.00049676,120]
[349053525,1736953974995,2261.92020729,0.0004968,120]
[349053526,1736953976041,151.0,0.00049706,120]
[349053527,1736953976909,151.011408,0.00049778,120]
[349053528,1736953977766,29181.10996761,0.0004978,30]
[349053529,1736953977794,1000.0,0.0004978,30]
[349053530,1736953977821,1698.43,0.0004978,30]
[349053531,1736953977848,300.0,0.0004978,30]
[349053532,1736953977875,1633.83620804,0.0004978,30]
[349053533,1736953977903,15326.63410101,0.0004978,30]
[349053534,1736953977930,71421.28918732,0.0004978,30]
[349053535,1736953978606,1000.0,0.0004978,120]
[349053536,1736953979033,49140.01027666,0.0004978,30]
[349053537,1736953979060,17455.874552,0.0004978,30]
[349053538,1736953979564,50000.0,0.00049,120]
[349053539,1736953980786,1100.04993634,0.0004988,120]
[349053540,1736953986307,-151.011408,0.0005,120]
[349053541,1736953986760,-150.0,0.0005,120]
[349053542,1736953990252,1689247.43636467,0.0004998,120]
[349053543,1736953990280,5850.6756502,0.0004998,120]
[349053544,1736953990309,800680.89004853,0.0004998,120]
[349053545,1736953994566,10618.73060281,0.0004998,60]
[349053546,1736953999354,-1544.83371768,0.0004998,60]
[349053547,1736954017617,176.0,9e-05,2]
[349053548,1736954022132,638.05,0.00049,120]
[349053549,1736954023128,1058413.15829627,0.0004998,120]
[349053550,1736954023155,1806058.051574,0.0004998,120]
[349053551,1736954023181,1571468.2300195,0.0004998,120]
[349053552,1736954023208,1571317.2300195,0.0004998,120]
[349053553,1736954023234,1571166.2300195,0.0004998,120]
[349053554,1736954023367,1455.16628232,0.0004998,120]
[349053555,1736954024028,-276.86035482,0.0004978,30]
[349053556,1736954035766,-15326.63410101,0.0004978,30]
[349053557,1736954036150,-300.0,0.0004978,30]
[349053558,1736954036527,-845.51403682,0.0004978,30]
[349053559,1736954036887,-29307.5277,0.0004978,30]
[349053560,1736954038607,-739.50896543,0.0004978,30]
[349053561,1736954045616,422.48537181,0.00049722,120]
[349053562,1736954066244,2577.51462819,0.000499,120]
[349053563,1736954069439,250.0,0.00047368,120]
[349053564,1736954077832,194.0,8.9e-05,2]
[349053565,1736954078792,-17839.1096,0.0004978,30]
[349053566,1736954079219,850.04993634,0.00035616,120]
[349053567,1736954079245,301.57,0.00035616,120]
[349053568,1736954079271,1000.0,0.00035616,120]
[349053569,1736954079296,151.011408,0.00035616,120]
[349053570,1736954079322,197.36865566,0.00035616,120]
[349053571,1736954079491,1423.56012718,0.00036164,120]
[349053572,1736954101131,-276.86035482,0.0004978,30]
[349053573,1736954101631,-6509.27407442,0.0004978,30]
[349053575,1736954139122,158.0,8.744e-05,2]
[349053576,1736954193923,3000.0,0.000495,47]
[349053577,1736954203199,153.0,0.00048844,31]
[349053578,1736954203444,153.0,0.00048844,31]
[349053579,1736954204027,5511.36002659,0.00049809,30]
[349053580,1736954212236,153.0,0.00048842,31]
[349053581,1736954216132,102.0,0.00049716,120]
[349053582,1736954216157,9898.0,0.00049716,120]
[349053583,1736954224443,200.0,0.00049465,120]
[349053584,1736954235419,200.0,0.00049528,120]
[349053585,1736954236097,10000.0,0.00049716,120]
[349053586,1736954236819,47435.36134443,0.0004976,30]
[349053587,1736954247179,1790.13870523,0.00049716,120]
[349053588,1736954247217,8209.86129477,0.00049716,120]
[349053589,1736954262214,10000.0,0.00049716,120]
[349053590,1736954267041,153.0,0.00048832,31]
[349053591,1736954267264,153.0,0.00048832,31]
[349053592,1736954274890,153.0,0.00048831,31]
[349053593,1736954287566,200.0,0.0004955,120]
[349053594,1736954306783,9900.0,0.00049716,120]
[349053595,1736954310701,1539.933,0.00040002,56]
[349053596,1736954322941,153.0,0.00048822,31]
[349053597,1736954327440,153.0,0.00048821,31]
[349053598,1736954359196,5356.66437333,0.0004,120]
[349053599,1736954388260,153.0,0.0004881,31]
[349053600,1736954398157,153.0,0.00048808,31]
[349053601,1736954403696,500.54382354,0.00049462,120]
[349053602,1736954419142,250.0,0.00039304,120]
[349053603,1736954442902,153.0,0.000488,31]
[349053604,1736954447407,153.0,0.00048799,31]
[349053605,1736954448078,17044.94136027,0.0004976,30]
[349053606,1736954499285,1438.85087958,0.0004977,30]
[349053607,1736954499315,55517.79473149,0.0004977,30]
[349053608,1736954499342,54672.28069467,0.0004977,30]
[349053609,1736954499369,6786.13442924,0.0004977,30]
[349053610,1736954499397,6509.27407442,0.0004977,30]
[349053611,1736954501079,151.0,0.00049216,120]
[349053612,1736954501103,2261.92020729,0.00049216,120]
[349053613,1736954501127,373.7842267,0.00049216,120]
[349053614,1736954501153,3126.19062015,0.00049216,120]
[349053615,1736954501177,353.46588041,0.00049216,120]
[349053616,1736954501202,200.0,0.00049216,120]
[349053617,1736954501227,3168.48,0.00049216,120]
[349053618,1736954501269,200.0,0.00049216,120]
[349053619,1736954501296,200.0,0.00049216,120]
[349053620,1736954501322,1663.34343927,0.00049216,120]
[349053621,1736954501349,1597.22412984,0.00049216,120]
[349053622,1736954517970,114258.43427158,0.0004949,120]
[349053623,1736954527436,350.0,0.0004943,30]
[349053624,1736954528971,6191.29209064,0.0004949,120]
[349053625,1736954534384,151.011408,0.00049488,120]
[349053626,1736954538067,2000.0,0.00049484,120]
[349053627,1736954543300,1960.96384846,0.00049477,120]
[349053628,1736954547326,200.0,0.00049471,120]
[349053629,1736954551237,1049.80253839,0.0004947,120]
[349053630,1736954556423,1659.6949106,0.00049458,120]
[349053631,1736954561047,876.97698135,0.00049452,120]
[349053632,1736954564328,200.0,0.00049,120]
[349053633,1736954564356,5010.62098,0.00049,120]
[349053634,1736954565521,315.95808434,0.0004942,30]
[349053635,1736954565553,4149.72989307,0.0004942,30]
[349053636,1736954570031,3253.0,0.00049305,120]
[349053637,1736954570064,1350.0,0.00049305,120]
[349053638,1736954586654,2500.0,0.0004929,120]
[349053639,1736954586683,940.50049063,0.0004929,120]
[349053640,1736954591305,212.32,0.00041266,120]
[349053641,1736954591333,100.62,0.00041266,120]
[349053642,1736954592272,5326.57906434,0.00049216,120]
[349053643,1736954603542,58409.02420166,0.000235,120]
[349053644,1736954603574,57817.18780224,0.000235,120]
[349053645,1736954603607,151.011408,0.000235,120]
[349053646,1736954603634,2875.84,0.000235,120]
[349053647,1736954603661,2675.84,0.000235,120]
[349053648,1736954603715,876716.3365881,0.000235,120]
[349053649,1736954609563,121928.9034119,0.000235,120]
[349053915,1736954709010,33774.0,0.0001,2]
[349053919,1736954847246,-300.0,9.999e-05,2]
[349053920,1736954847271,-4800.0,0.0001,2]
[349053930,1736954929810,165.364,8e-05,2]
[349053931,1736954929838,800.0,8e-05,2]
[349053932,1736954929861,800.0,8e-05,2]
[349053933,1736954929883,800.0,8e-05,2]
[349053934,1736954929906,800.0,8e-05,2]
[349053935,1736954929928,800.0,8e-05,2]
[349053936,1736954929950,800.0,8e-05,2]
[349053937,1736954929976,6391.26014316,8e-05,2]
[349053938,1736954929997,5341.64585684,8e-05,2]
[349053969,1736955031745,-525.88,9.2e-05,2]
[349053971,1736955031758,-2488.40654878,9.2e-05,2]
[349053973,1736955031768,-424.87973834,9.8e-05,3]
[349053975,1736955031853,-175.12026166,9.8e-05,3]
[349053976,1736955031863,-766.60740712,9.9e-05,3]
[349053977,1736955031908,-433.39259288,9.9e-05,3]
[349053978,1736955031918,-1569.56510515,9.973e-05,2]
[349053979,1736955031930,-412.40818989,9.973e-05,2]
[349053980,1736955031942,-2134.85104343,9.973e-05,2]
[349053981,1736955031954,-614.30425898,9.973e-05,2]
[349053982,1736955031970,-31471.36210922,9.973e-05,2]
[349053983,1736955031980,-500.0,9.973e-05,2]
[349053984,1736955031990,-500.0,9.973e-05,2]
[349053985,1736955031999,-224.64310056,9.973e-05,2]
[349053986,1736955032010,-500.0,9.973e-05,2]
[349053987,1736955032020,-150.0,9.999e-05,2]
[349053988,1736955032029,-23859.71780461,0.0001,2]
[349053989,1736955032041,-2086.13015007,0.0001,2]
[349053990,1736955032077,-425.26336825,0.0001,2]
[349053991,1736955032156,-1492.14246391,0.0001,2]
[349053992,1736955032165,-4206.56665164,0.0001,2]
[349053993,1736955032177,-4965.893,0.0001,2]
[349053994,1736955032188,-2032.321112,0.0001,2]
[349053995,1736955032207,-348.60001388,0.0001,2]
[349053996,1736955032218,-467.78978815,0.0001,2]
[349053998,1736955032366,-1467696.48531886,0.0001,2]